bitfinex/quotes_SOLUSD_20250930
["timestamp","ask_amount","ask_price","bid_price","bid_amount"]
[1759245203517,7.26060159,207.54,207.48,36.14]
[1759245203822,5.51839542,207.54,207.48,40.95968509]
[1759245204639,5.51839542,207.54,207.45,12.0508576]
[1759245204640,6.56060159,207.51,207.45,36.12]
[1759245204841,7.26060159,207.51,207.45,36.12]
[1759245205421,0.7,207.51,207.45,36.12]
[1759245205937,0.7,207.51,207.45,4.82023432]
[1759245206133,12.07971318,207.51,207.46,36.1]
[1759245206335,0.7,207.5,207.46,36.1]
[1759245206839,0.7,207.53,207.46,36.1]
[1759245207021,7.26060159,207.53,207.46,36.1]
[1759245207344,6.56060159,207.52,207.46,36.1]
[1759245207832,6.56060159,207.5,207.46,36.1]
[1759245208042,0.7,207.49,207.46,36.1]
[1759245209231,0.7,207.49,207.43,13.59559401]
[1759245209427,0.7,207.49,207.44,36.04]
[1759245209941,12.0796482,207.51,207.44,36.04]
[1759245210143,5.51904661,207.51,207.44,36.04]
[1759245210316,12.0796482,207.51,207.44,36.04]
[1759245210939,6.56060159,207.48,207.4,20.8]
[1759245211116,6.56060159,207.46,207.36,4.82253086]
[1759245211321,11.38127262,207.44,207.37,13.59559401]
[1759245211518,11.38127262,207.44,207.37,49.57559401]
[1759245211718,12.08127262,207.44,207.37,49.57559401]
[1759245212127,0.7,207.44,207.37,49.57559401]
[1759245212321,0.7,207.44,207.38,35.96]
[1759245212526,6.56060159,207.44,207.36,4.82253086]
[1759245212844,6.56060159,207.42,207.37,35.96]
[1759245213022,7.26060159,207.42,207.37,35.96]
[1759245213223,0.7,207.42,207.38,4.82206577]
[1759245213752,0.7,207.45,207.38,4.82206577]
[1759245214325,5.52052242,207.45,207.38,4.82206577]
[1759245214528,5.52052242,207.45,207.37,35.96]
[1759245214529,0.7,207.44,207.37,35.96]
[1759245214725,6.56060159,207.43,207.37,35.96]
[1759245214935,7.26060159,207.42,207.34,4.82299604]
[1759245215163,7.26060159,207.41,207.33,14.44356185]
[1759245215448,4.82183326,207.39,207.33,4.82310403]
[1759245216524,4.82183326,207.39,207.32,35.92]
[1759245216728,0.7,207.38,207.32,40.74337619]
[1759245217446,0.7,207.38,207.32,4.82337619]
[1759245218223,5.52211311,207.38,207.32,4.82337619]
[1759245218834,0.7,207.38,207.32,4.82337619]
[1759245219353,4.82253086,207.36,207.22,160.92069911]
[1759245219526,0.7,207.35,207.24,13.59559401]
[1759245219726,0.7,207.35,207.26,13.59559401]
[1759245219953,0.7,207.38,207.26,13.59559401]
[1759245220331,0.7,207.38,207.29,20.8]
[1759245220654,0.7,207.38,207.3,35.84]
[1759245220824,4.82180397,207.4,207.3,35.84]
[1759245220825,4.82160077,207.4,207.3,35.84]
[1759245221143,0.7,207.37,207.3,35.84]
[1759245221345,5.5218608,207.39,207.31,4.82369398]
[1759245222351,0.7,207.38,207.31,4.82369398]
[1759245222551,6.56060159,207.41,207.17,133.0]
[1759245222552,6.56060159,207.34,207.17,133.0]
[1759245222755,7.26060159,207.33,207.19,13.59559401]
[1759245222966,0.7,207.33,207.19,13.59559401]
[1759245223246,0.7,207.33,207.23,13.59559401]
[1759245223448,4.8222983,207.37,207.26,13.59559401]
[1759245223667,0.7,207.36,207.26,13.59559401]
[1759245224757,5.5226101,207.36,207.28,13.59559401]
[1759245225132,0.7,207.38,207.28,13.59559401]
[1759245225749,0.7,207.37,207.28,13.59559401]
[1759245226150,0.7,207.37,207.29,4.82415939]
[1759245227077,0.7,207.36,207.29,4.82415939]
[1759245227944,6.56060159,207.33,207.25,29.66090791]
[1759245228128,11.38429557,207.31,207.23,4.82535483]
[1759245228332,0.7,207.3,207.23,4.82535483]
[1759245228534,0.7,207.38,207.24,13.59559401]
[1759245228748,0.7,207.37,207.24,34.39559401]
[1759245228980,0.7,207.36,207.24,34.39559401]
[1759245230059,4.82276344,207.35,207.26,13.59559401]
[1759245230249,4.82276344,207.35,207.27,35.72]
[1759245230638,5.52276344,207.35,207.27,35.72]
[1759245231461,0.7,207.35,207.27,35.72]
[1759245232052,0.7,207.35,207.28,4.82439212]
[1759245232360,0.7,207.38,207.28,4.82439212]
[1759245232662,0.7,207.4,207.29,13.59559401]
[1759245233562,5.0765262,207.39,207.28,40.48439212]
[1759245233763,0.65,207.38,207.28,40.48439212]
[1759245234150,5.4722983,207.37,207.27,35.64]
[1759245234468,0.65,207.4,207.28,13.59559401]
[1759245235248,5.47181071,207.4,207.28,13.59559401]
[1759245236257,5.47181071,207.4,207.3,13.59559401]
[1759245236575,0.65,207.4,207.3,13.59559401]
[1759245236748,4.82116071,207.42,207.3,13.59559401]
[1759245237158,0.65,207.41,207.3,13.59559401]
[1759245238073,0.65,207.47,207.36,13.59559401]
[1759245238276,0.65,207.47,207.35,20.8]
[1759245238277,0.65,207.47,207.37,35.58]
[1759245238481,0.65,207.46,207.37,35.58]
[1759245239449,0.65,207.49,207.38,13.59559401]
[1759245239663,16.86421894,207.54,207.38,13.59559401]
[1759245239874,0.65,207.51,207.38,13.59559401]
[1759245240044,0.65,207.51,207.4,13.59559401]
[1759245240443,5.46907789,207.51,207.4,13.59559401]
[1759245240642,0.65,207.51,207.4,13.59559401]
[1759245240878,5.46908243,207.51,207.4,13.59559401]
[1759245242101,0.65,207.51,207.42,13.59559401]
[1759245242266,5.4691014,207.51,207.42,49.13559401]
[1759245242973,26.2691014,207.51,207.42,63.38021767]
[1759245243581,0.2,207.55,207.42,63.38021767]
[1759245243771,21.45,207.54,207.42,63.38021767]
[1759245244158,5.46858044,207.53,207.44,13.59559401]
[1759245244357,0.65,207.52,207.44,13.59559401]
[1759245244786,0.65,207.51,207.44,13.59559401]
[1759245244981,0.65,207.51,207.42,19.06574717]
[1759245245189,5.0765262,207.5,207.41,13.59559401]
[1759245245360,0.65,207.49,207.41,13.59559401]
[1759245245757,5.0765262,207.48,207.38,4.82185059]
[1759245246091,4.8202063,207.46,207.38,4.82185059]
[1759245246388,0.65,207.45,207.38,4.82185059]
[1759245247170,4.8202063,207.46,207.38,4.82185059]
[1759245247372,4.81991853,207.48,207.39,13.59559401]
[1759245247576,4.81943734,207.5,207.39,13.59559401]
[1759245247773,0.65,207.49,207.39,13.59559401]
[1759245247971,0.65,207.48,207.39,13.59559401]
[1759245248176,4.8202063,207.46,207.4,4.82160077]
[1759245248384,20.8,207.5,207.4,4.82160077]
[1759245248695,17.5182828,207.49,207.4,4.82160077]
[1759245248992,21.944809,207.49,207.4,4.82160077]
[1759245249175,0.65,207.48,207.4,4.82160077]
[1759245249585,16.8682828,207.49,207.39,49.05559401]
[1759245249772,16.8682828,207.49,207.3,3.90660123]
[1759245249773,5.0765262,207.47,207.37,19.09498503]
[1759245249979,0.65,207.46,207.37,4.82229371]
[1759245250187,5.47032322,207.46,207.36,18.41812487]
[1759245250368,0.65,207.46,207.36,30.47445203]
[1759245250564,4.82001153,207.47,207.36,30.47445203]
[1759245250766,0.65,207.46,207.36,30.47445203]
[1759245250988,0.65,207.46,207.39,20.8]
[1759245251191,4.4265262,207.51,207.4,13.59559401]
[1759245251495,0.65,207.48,207.4,13.59559401]
[1759245251981,4.8192771,207.5,207.4,13.59559401]
[1759245252164,0.65,207.48,207.4,13.59559401]
[1759245252367,4.81997397,207.47,207.41,4.8213683]
[1759245252894,25.61898286,207.52,207.42,13.59559401]
[1759245253109,0.65,207.51,207.42,13.59559401]
[1759245253273,0.65,207.5,207.42,13.59559401]
[1759245253789,42.09254067,207.52,207.42,13.59559401]
[1759245253994,0.65,207.49,207.42,13.59559401]
[1759245254293,4.81974166,207.48,207.42,13.59559401]
[1759245254491,0.65,207.47,207.41,4.8213683]
[1759245254679,0.65,207.51,207.42,13.59559401]
[1759245254877,12.04682494,207.53,207.42,13.59559401]
[1759245255087,4.81858044,207.53,207.42,13.59559401]
[1759245255786,0.71,207.52,207.42,13.59559401]
[1759245256381,5.52904486,207.51,207.43,4.82090343]
[1759245257510,0.71,207.5,207.41,18.41689501]
[1759245257674,4.4209045,207.48,207.4,13.59559401]
[1759245257871,0.71,207.47,207.4,13.59559401]
[1759245258110,0.71,207.46,207.37,14.60529835]
[1759245258307,25.2209045,207.47,207.37,14.60529835]
[1759245258308,25.2209045,207.47,207.38,13.59559401]
[1759245258514,0.71,207.45,207.38,13.59559401]
[1759245258726,0.71,207.45,207.37,13.59559401]
[1759245259298,4.82067103,207.44,207.37,18.41777483]
[1759245259603,4.82044329,207.45,207.37,18.41777483]
[1759245259808,5.53044329,207.45,207.37,18.41777483]
[1759245260303,20.8,207.5,207.37,30.47352059]
[1759245260506,4.81933347,207.5,207.41,13.59559401]
[1759245260815,0.71,207.49,207.41,35.38]
[1759245261016,4.4209045,207.48,207.41,35.38]
[1759245261205,4.8202063,207.46,207.38,18.4176182]
[1759245263030,5.53000502,207.47,207.38,30.47278263]
[1759245264928,5.53000502,207.47,207.38,18.4176182]
[1759245265339,0.72,207.5,207.38,30.47278263]
[1759245265525,0.72,207.53,207.41,20.8]
[1759245265726,0.72,207.53,207.42,48.95559401]
[1759245265929,20.8,207.52,207.42,48.95559401]
[1759245267044,4.81904486,207.51,207.44,13.59559401]
[1759245268122,4.81904486,207.51,207.45,4.82043865]
[1759245268934,4.81904486,207.51,207.44,13.59559401]
[1759245270133,4.81904486,207.51,207.44,18.41617499]
[1759245271336,0.72,207.5,207.43,4.82087741]
[1759245271548,5.1409045,207.5,207.43,4.82087741]
[1759245271843,0.72,207.5,207.43,4.82087741]
[1759245273046,5.53932803,207.5,207.43,4.82087741]
[1759245273220,0.72,207.49,207.43,4.82087741]
[1759245273415,4.81932803,207.5,207.43,4.82087741]
[1759245274119,4.81932803,207.5,207.42,18.41672986]
[1759245275043,5.1409045,207.49,207.4,4.82137073]
[1759245275335,4.4209045,207.46,207.39,13.59559401]
[1759245275534,0.72,207.45,207.39,13.59559401]
[1759245276442,4.82067103,207.44,207.39,13.59559401]
[1759245276630,4.82067103,207.44,207.39,18.41739577]
[1759245276941,5.54067103,207.44,207.39,18.41739577]
[1759245277526,4.82067103,207.44,207.39,18.41739577]
[1759245278016,0.72,207.46,207.39,18.41739577]
[1759245278216,7.20875289,207.46,207.39,18.41739577]
[1759245279639,7.20875289,207.46,207.38,4.82204265]
[1759245279835,0.72,207.45,207.34,25.62294259]
[1759245280036,1.66851499,207.41,207.28,13.59559401]
[1759245280338,0.72,207.4,207.34,13.59559401]
[1759245280556,19.25926865,207.46,207.34,13.59559401]
[1759245280717,20.83536255,207.46,207.34,13.59559401]
[1759245280917,2.38851499,207.45,207.33,34.39559401]
[1759245281118,2.38851499,207.44,207.33,34.39559401]
[1759245281442,2.38851499,207.43,207.33,34.39559401]
[1759245281741,4.8213683,207.41,207.34,4.82299604]
[1759245282642,5.54117286,207.42,207.34,4.82299604]
[1759245282941,0.72,207.41,207.35,13.59559401]
[1759245283143,0.72,207.4,207.33,13.59559401]
[1759245283439,16.8740125,207.42,207.29,35.32]
[1759245283440,2.38851499,207.39,207.3,13.59559401]
[1759245284147,4.82206577,207.38,207.3,18.41931253]
[1759245286649,6.49058076,207.38,207.3,18.41931253]
[1759245287443,5.54186562,207.39,207.3,30.47912922]
[1759245287829,0.72,207.39,207.3,30.47912922]
[1759245288030,0.72,207.38,207.3,18.41931253]
[1759245288337,0.72,207.37,207.3,18.41931253]
[1759245288545,0.72,207.36,207.3,13.59559401]
[1759245288723,4.82276344,207.35,207.3,18.41951049]
[1759245288929,4.82230399,207.37,207.3,18.41951049]
[1759245289447,5.54230399,207.37,207.3,18.41951049]
[1759245290431,18.54656474,207.37,207.3,13.59559401]
[1759245290631,0.72,207.36,207.3,13.59559401]
[1759245291642,0.72,207.36,207.3,18.41951331]
[1759245294371,5.54266213,207.36,207.3,18.41951331]
[1759245296356,0.72,207.36,207.3,18.41951331]
[1759245297270,26.34163177,207.4,207.3,18.41951331]
[1759245297445,0.72,207.4,207.3,30.47933]
[1759245297938,5.54163259,207.4,207.3,30.47933]
[1759245298362,0.72,207.42,207.3,30.47933]
[1759245298560,3.32907202,207.45,207.34,13.59559401]
[1759245298861,0.72,207.45,207.34,13.59559401]
[1759245299246,0.72,207.45,207.34,28.0886977]
[1759245299553,0.72,207.45,207.36,13.59559401]
[1759245299554,4.82067103,207.44,207.36,13.59559401]
[1759245299862,0.72,207.43,207.36,13.59559401]
[1759245300064,4.82047251,207.45,207.36,13.59559401]
[1759245300246,3.32907202,207.45,207.36,13.59559401]
[1759245300453,4.82024526,207.46,207.34,4.8229959]
[1759245300454,2.60907202,207.42,207.34,4.8229959]
[1759245300764,2.60907202,207.42,207.32,16.87877173]
[1759245300765,2.60907202,207.37,207.3,13.59559401]
[1759245300971,0.72,207.39,207.3,13.59559401]
[1759245301174,3.32907202,207.39,207.3,13.59559401]
[1759245301351,2.60907202,207.38,207.3,13.59559401]
[1759245301550,4.8222983,207.37,207.31,4.82369398]
[1759245302193,5.54210504,207.38,207.31,4.82369398]
[1759245302343,8.15117706,207.38,207.31,4.82369398]
[1759245302874,8.15117706,207.38,207.28,35.23405614]
[1759245302875,2.60907202,207.36,207.28,35.23405614]
[1759245303072,2.60907202,207.34,207.26,35.32]
[1759245303366,2.60907202,207.31,207.25,4.82507819]
[1759245303571,20.8,207.35,207.26,13.59559401]
[1759245303778,3.32907202,207.37,207.26,13.59559401]
[1759245303953,0.72,207.37,207.26,27.85556351]
[1759245304271,0.72,207.37,207.26,13.59559401]
[1759245304458,3.32907202,207.37,207.26,13.59559401]
[1759245304658,8.15142043,207.37,207.26,13.59559401]
[1759245304859,2.60907202,207.36,207.26,13.59559401]
[1759245305060,2.60907202,207.34,207.26,13.59559401]
[1759245305266,0.72,207.33,207.26,13.59559401]
[1759245305667,0.72,207.33,207.28,13.59559401]
[1759245306049,20.8,207.35,207.28,13.59559401]
[1759245306358,0.72,207.34,207.28,13.59559401]
[1759245307148,5.54303068,207.34,207.28,18.4198047]
[1759245307353,0.72,207.33,207.28,18.4198047]
[1759245307557,36.04,207.37,207.28,18.4198047]
[1759245307764,0.72,207.4,207.28,18.4198047]
[1759245307963,4.82090343,207.43,207.34,13.59559401]
[1759245307964,0.72,207.43,207.34,13.59559401]
[1759245308169,35.32,207.45,207.34,13.59559401]
[1759245308579,0.72,207.46,207.34,13.59559401]
[1759245309263,0.72,207.46,207.36,13.59559401]
[1759245310777,0.72,207.52,207.38,13.59559401]
[1759245310966,20.8,207.51,207.38,13.59559401]
[1759245311174,0.72,207.52,207.38,13.59559401]
[1759245311471,5.5389206,207.52,207.4,13.59559401]
[1759245311677,0.2,207.55,207.44,13.59559401]
[1759245311859,0.92,207.55,207.44,13.59559401]
[1759245312065,3.32907202,207.54,207.44,13.59559401]
[1759245312278,0.72,207.53,207.44,13.59559401]
[1759245312473,2.60907202,207.54,207.44,13.59559401]
[1759245312784,0.72,207.52,207.44,13.59559401]
[1759245313273,5.53897945,207.52,207.44,18.41612339]
[1759245313678,0.72,207.52,207.44,18.41612339]
[1759245313857,5.53835245,207.54,207.44,30.46780098]
[1759245314057,21.0,207.55,207.44,30.46780098]
[1759245314252,0.2,207.55,207.48,13.59559401]
[1759245315475,2.60907202,207.52,207.43,13.59559401]
[1759245315669,3.32907202,207.52,207.43,13.59559401]
[1759245315978,2.60907202,207.5,207.43,13.59559401]
[1759245316155,0.72,207.51,207.43,13.59559401]
[1759245316363,3.32907202,207.51,207.43,13.59559401]
[1759245316678,0.72,207.51,207.43,13.59559401]
[1759245316975,4.81858044,207.53,207.43,13.59559401]
[1759245316976,7.42765246,207.53,207.43,13.59559401]
[1759245317187,0.2,207.55,207.43,13.59559401]
[1759245317483,5.01822207,207.55,207.48,13.59559401]
[1759245318282,7.62729409,207.55,207.48,13.59559401]
[1759245318585,7.62729409,207.55,207.48,4.81973593]
[1759245318788,2.60907202,207.54,207.47,14.74230452]
[1759245318987,0.72,207.53,207.43,13.59559401]
[1759245319189,0.72,207.53,207.43,30.46875603]
[1759245319570,0.72,207.53,207.41,40.11858044]
[1759245319798,23.40907202,207.54,207.24,20.0]
[1759245319799,2.60907202,207.43,207.24,20.0]
[1759245320087,2.60907202,207.43,207.13,0.1]
[1759245320088,21.52,207.43,207.31,14.49450416]
[1759245320288,6.54308242,207.4,207.28,20.8]
[1759245320471,21.52,207.43,207.28,20.8]
[1759245320472,4.82151826,207.41,207.31,13.59559401]
[1759245320676,4.82151826,207.41,207.25,49.7952045]
[1759245320677,6.54308242,207.38,207.27,12.06116252]
[1759245320888,6.54308242,207.33,207.26,4.82485766]
[1759245321076,0.72,207.37,207.23,4.82555614]
[1759245321077,6.54308242,207.32,207.23,4.82555614]
[1759245321377,6.54308242,207.33,207.24,13.59559401]
[1759245321789,6.54308242,207.33,207.23,4.82555614]
[1759245322088,6.54308242,207.33,207.24,13.59559401]
[1759245322290,0.72,207.34,207.23,4.82555614]
[1759245322291,6.54308242,207.32,207.23,16.8894465]
[1759245322472,6.54308242,207.32,207.24,13.59559401]
[1759245322863,11.36633572,207.33,207.24,13.59559401]
[1759245323064,6.54308242,207.35,207.24,13.59559401]
[1759245324275,21.47,207.4,207.26,13.59559401]
[1759245324462,6.54308242,207.39,207.28,13.59559401]
[1759245324666,6.54308242,207.37,207.28,13.59559401]
[1759245324869,0.67,207.38,207.28,13.59559401]
[1759245325470,0.67,207.38,207.29,16.88455786]
[1759245326083,20.8,207.41,207.29,16.88455786]
[1759245326084,6.54308242,207.4,207.29,16.88455786]
[1759245326269,6.54308242,207.39,207.29,16.88455786]
[1759245326465,7.21308242,207.38,207.29,16.88455786]
[1759245326686,0.67,207.38,207.3,13.59559401]
[1759245326858,7.21308242,207.38,207.3,13.59559401]
[1759245327062,0.67,207.38,207.3,13.59559401]
[1759245327284,12.03475608,207.4,207.3,13.59559401]
[1759245328198,0.67,207.4,207.32,13.59559401]
[1759245328666,5.49164754,207.4,207.32,13.59559401]
[1759245328988,0.67,207.39,207.32,13.59559401]
[1759245329392,6.54308242,207.38,207.31,4.82369398]
[1759245329574,0.67,207.37,207.31,20.8]
[1759245330281,6.54308242,207.35,207.28,4.82422575]
[1759245330475,6.54308242,207.35,207.26,13.59559401]
[1759245330476,6.54308242,207.32,207.25,4.82507593]
[1759245330677,7.21308242,207.32,207.25,4.82507593]
[1759245330866,6.54308242,207.3,207.23,40.12538006]
[1759245331062,6.54308242,207.26,207.18,14.50431503]
[1759245331262,0.67,207.26,207.17,4.92687809]
[1759245331484,0.67,207.26,207.18,13.59559401]
[1759245331672,0.67,207.28,207.18,13.59559401]
[1759245331971,7.21308242,207.27,207.18,13.59559401]
[1759245332171,4.82532329,207.24,207.18,18.42223794]
[1759245332371,0.67,207.23,207.17,4.92695135]
[1759245332595,0.67,207.23,207.17,0.1]
[1759245332895,6.54308242,207.21,207.17,0.1]
[1759245333075,0.67,207.22,207.17,0.1]
[1759245333271,7.21308242,207.21,207.17,0.1]
[1759245333475,6.54308242,207.2,207.17,0.1]
[1759245333673,6.54308242,207.19,207.17,0.1]
[1759245333874,7.21308242,207.18,207.13,0.1]
[1759245334103,6.54308242,207.14,207.13,0.1]
[1759245334302,0.67,207.18,207.13,0.1]
[1759245334303,6.54308242,207.15,207.13,0.1]
[1759245334507,0.67,207.15,207.13,0.1]
[1759245334700,7.21308242,207.14,207.13,0.1]
[1759245335009,35.3,207.17,207.13,0.1]
[1759245335207,4.82673488,207.18,207.13,0.1]
[1759245335208,7.21308242,207.16,207.13,0.1]
[1759245335415,20.8,207.19,207.13,0.1]
[1759245335709,28.01308242,207.19,207.13,0.1]
[1759245336000,0.67,207.19,207.13,4.92787247]
[1759245336205,7.21308242,207.22,207.13,16.99758714]
[1759245336379,7.21308242,207.26,207.17,13.59559401]
[1759245336574,6.54308242,207.25,207.17,13.59559401]
[1759245336782,4.82490417,207.26,207.17,13.59559401]
[1759245336783,7.21308242,207.24,207.17,13.59559401]
[1759245336990,0.67,207.24,207.17,13.59559401]
[1759245337230,7.21308242,207.24,207.17,13.59559401]
[1759245337397,0.67,207.24,207.17,13.59559401]
[1759245337606,7.21308242,207.27,207.17,13.69559401]
[1759245337773,6.54308242,207.26,207.17,13.69559401]
[1759245338176,0.67,207.27,207.17,13.69559401]
[1759245338389,7.21308242,207.27,207.19,13.59559401]
[1759245338586,6.54308242,207.25,207.18,4.82672072]
[1759245338781,7.21308242,207.24,207.17,4.82694134]
[1759245338997,0.67,207.24,207.17,4.82694134]
[1759245340205,0.67,207.24,207.17,12.06738427]
[1759245340710,0.67,207.24,207.16,4.82718671]
[1759245341104,4.82496268,207.26,207.17,13.59559401]
[1759245341495,7.21308242,207.27,207.17,13.59559401]
[1759245341697,5.49465344,207.27,207.17,13.59559401]
[1759245341902,12.03773586,207.27,207.17,13.59559401]
[1759245342487,7.21308242,207.26,207.18,4.82672072]
[1759245342686,6.54308242,207.25,207.18,4.82672072]
[1759245343002,0.67,207.24,207.17,13.59559401]
[1759245343222,0.67,207.24,207.17,18.42253469]
[1759245344212,0.67,207.23,207.16,13.59559401]
[1759245344386,4.82578901,207.22,207.16,18.42275808]
[1759245344732,4.82578901,207.22,207.15,13.59559401]
[1759245344733,0.67,207.21,207.15,13.59559401]
[1759245344909,46.68887143,207.22,207.14,20.8]
[1759245345087,7.21308242,207.2,207.13,4.92782305]
[1759245345288,4.82578901,207.22,207.13,4.92782305]
[1759245345501,35.32,207.22,207.14,13.59559401]
[1759245346011,147.11062903,207.35,207.17,13.59559401]
[1759245346012,0.67,207.26,207.17,13.59559401]
[1759245346311,0.67,207.28,207.18,0.1]
[1759245346513,5.49445684,207.28,207.21,4.82602191]
[1759245346709,0.67,207.28,207.21,4.82602191]
[1759245346898,0.67,207.28,207.22,13.59559401]
[1759245347104,0.67,207.31,207.23,0.1]
[1759245347416,0.67,207.34,207.23,0.1]
[1759245348492,4.82322866,207.33,207.23,4.92535153]
[1759245348697,0.67,207.33,207.24,0.1]
[1759245348889,46.68604074,207.35,207.24,0.1]
[1759245348890,35.32,207.35,207.24,13.69559401]
[1759245349114,0.67,207.41,207.28,13.59559401]
[1759245349290,0.67,207.41,207.29,0.1]
[1759245349491,6.54308242,207.39,207.29,0.1]
[1759245349714,0.67,207.38,207.29,0.1]
[1759245350490,5.49222134,207.38,207.31,13.59559401]
[1759245350686,5.49175188,207.4,207.31,13.59559401]
[1759245350893,0.67,207.39,207.31,13.59559401]
[1759245351103,7.21308242,207.39,207.31,13.59559401]
[1759245351290,0.67,207.39,207.31,13.59559401]
[1759245352243,4.82206577,207.38,207.31,13.59559401]
[1759245352418,4.82206577,207.38,207.31,4.82368291]
[1759245352790,0.68,207.37,207.3,13.59559401]
[1759245353505,23.42031262,207.38,207.3,13.59559401]
[1759245353705,0.68,207.37,207.28,13.59559401]
[1759245354109,5.50231775,207.37,207.3,13.59559401]
[1759245354503,0.68,207.37,207.3,13.59559401]
[1759245354699,0.68,207.41,207.31,0.1]
[1759245354901,0.68,207.41,207.3,13.59559401]
[1759245354902,12.0446065,207.41,207.3,13.59559401]
[1759245355121,6.54308242,207.39,207.3,13.59559401]
[1759245355315,6.54308242,207.37,207.3,13.59559401]
[1759245355711,0.68,207.36,207.3,13.59559401]
[1759245356129,5.50276344,207.35,207.28,13.59559401]
[1759245356321,17.55967204,207.35,207.28,13.59559401]
[1759245356928,0.68,207.34,207.27,13.59559401]
[1759245357798,4.82276344,207.35,207.27,13.69559401]
[1759245358120,5.50276344,207.35,207.27,13.59559401]
[1759245358322,5.50276344,207.35,207.27,18.42017414]
[1759245358510,17.55967204,207.35,207.27,13.59559401]
[1759245358700,4.42828741,207.33,207.26,20.8]
[1759245358895,5.10828741,207.32,207.22,0.1]
[1759245359103,5.10828741,207.32,207.25,13.59559401]
[1759245359305,0.68,207.31,207.25,13.59559401]
[1759245359744,0.68,207.3,207.22,4.82576833]
[1759245359923,4.42828741,207.27,207.19,13.59559401]
[1759245360112,0.68,207.28,207.19,13.69559401]
[1759245360305,4.82434582,207.29,207.2,0.1]
[1759245360500,0.68,207.28,207.2,0.1]
[1759245360821,0.68,207.28,207.19,18.42186433]
[1759245361130,4.42828741,207.24,207.15,4.92739561]
[1759245361312,0.68,207.23,207.16,13.59559401]
[1759245361813,20.8,207.28,207.16,13.59559401]
[1759245361814,20.8,207.26,207.17,0.1]
[1759245362008,4.42828741,207.25,207.16,13.59559401]
[1759245362210,0.68,207.24,207.17,4.8269537]
[1759245362402,25.6250837,207.26,207.18,13.69559401]
[1759245362915,0.68,207.25,207.18,13.59559401]
[1759245363317,30.05337111,207.26,207.14,68.1687685]
[1759245363318,5.10828741,207.24,207.16,13.59559401]
[1759245363621,4.42828741,207.22,207.13,0.1]
[1759245364027,4.42828741,207.24,207.14,13.59559401]
[1759245364209,26.3050837,207.26,207.16,16.89515349]
[1759245364409,26.3050837,207.26,207.17,13.59559401]
[1759245364620,21.48,207.26,207.16,4.82718671]
[1759245364817,0.68,207.26,207.18,13.59559401]
[1759245365120,12.06023137,207.3,207.18,13.59559401]
[1759245365324,36.0,207.32,207.22,13.59559401]
[1759245365504,0.68,207.32,207.25,20.8]
[1759245365708,5.50276344,207.35,207.26,13.59559401]
[1759245366023,0.68,207.34,207.26,13.59559401]
[1759245366527,5.50303882,207.34,207.27,4.82462488]
[1759245366711,0.68,207.34,207.27,4.82462488]
[1759245366913,5.50300178,207.34,207.28,13.59559401]
[1759245367113,5.50300178,207.34,207.25,32.96254465]
[1759245367114,0.68,207.33,207.26,13.59559401]
[1759245367922,0.68,207.33,207.26,20.8]
[1759245368128,5.10828741,207.33,207.26,20.8]
[1759245368309,21.310402,207.32,207.21,13.59559401]
[1759245368507,4.42828741,207.31,207.24,20.8]
[1759245368822,0.68,207.3,207.24,20.8]
[1759245369515,5.10828741,207.29,207.2,34.39559401]
[1759245369840,4.42828741,207.27,207.2,13.59559401]
[1759245370209,5.10828741,207.28,207.2,13.59559401]
[1759245370405,4.82462488,207.27,207.2,18.42184028]
[1759245370838,56.8,207.34,207.21,0.1]
[1759245371121,61.22828741,207.34,207.21,0.1]
[1759245371621,4.42828741,207.33,207.21,0.1]
[1759245371821,0.68,207.32,207.21,0.1]
[1759245372437,5.50365595,207.32,207.23,13.59559401]
[1759245372640,4.42828741,207.3,207.21,4.82598876]
[1759245372830,0.68,207.29,207.2,4.82624146]
[1759245373030,4.42828741,207.25,207.18,13.59559401]
[1759245373235,20.8,207.29,207.15,4.82741974]
[1759245373236,5.10828741,207.24,207.15,4.82741974]
[1759245373557,5.10828741,207.23,207.15,4.82741974]
[1759245373842,4.42828741,207.2,207.13,4.92779089]
[1759245374016,0.68,207.19,207.13,0.1]
[1759245374339,5.10828741,207.19,207.13,0.1]